Cogmind - Beta 15 @@@ ROGUE MODE // 2025.09.21 @ 18:43:21 Player: winnking222 Result: Destroyed by Guardian 5a with Gatling Laser Performance ------------- Evolutions (4) 2000 Regions Visited (10) 2000 Robots Destroyed (130) 650 Value Destroyed (6052) 6052 Prototype IDs (29) 580 Alien Tech Used (0) 0 Bonus (2837) 2837 TOTAL SCORE: 14119 Bonus ------- High Alert Combat Kills 714 Follower Combat Kills 461 Entered Garrisons 400 Used RIF Installer 1000 Aligned with FarCom 300 Friendly Fire -38 Cogmind --------- Core Integrity 0/850 Matter 202/300 Energy 100/100 System Corruption 20% Temperature Cool (18) Movement Core (1350) Ox26 Location -6/Factory Parts ------- > --- POWER (2) -------- (None) > --- PROPULSION (4) --- (None) > --- UTILITY (6) ------ Huge Storage Unit Relay Coupler [NC] (36) > --- WEAPON (3) ------- (None) > --- INVENTORY (25) --- High-capacity Matter Pod (200) Medium Reactive Plating Relay Coupler [Specialist] (25) Relay Coupler [Specialist] (34) Relay Coupler [Hunter] (18) Relay Coupler [Hunter] (22) Relay Coupler [Heavy] (13) Army-in-a-Box (30/30) Latent Energy Streamer Guided Plasma Cannon Enhanced Autogun Improved Grenade Launcher Improved Plasma Cutter Peak State ------------ > --- POWER ------------ Micro Nuclear Core Micro Nuclear Core > --- PROPULSION ------- Light Treads Improved Heavy Treads > --- UTILITY ---------- Advanced Heat Sink Huge Storage Unit Advanced Sensor Array Layered Heavy Armor Plating Relay Coupler [Sentry] > --- WEAPON ----------- Heavy Mass Driver Remote Datajack > --- INVENTORY -------- Improved Heavy Treads Improved Heavy Treads High-capacity Matter Pod Medium Reactive Plating Relay Coupler [NC] Relay Coupler [Specialist] Relay Coupler [Specialist] Relay Coupler [Hunter] Relay Coupler [Hunter] Relay Coupler [Heavy] Army-in-a-Box Latent Energy Streamer Guided Plasma Cannon High-powered Shotgun Enhanced Autogun Gauss Rifle Improved Grenade Launcher Improved Plasma Cutter [Rating: 81] Favorites ----------- Power Light Nuclear Core Engine Improved Ion Engine Power Core Light Nuclear Core Propulsion Light Treads Treads Light Treads Leg Aluminum Leg Wheel Compact Wheel Utility High-capacity Storage Unit Device Advanced Heat Sink Storage High-capacity Storage Unit Processor Improved Signal Interpreter Hackware Relay Coupler [Sentry] Protection Heavy Armor Plating Weapon Enhanced Autogun Energy Gun Particle Gun Energy Cannon Guided Plasma Cannon Ballistic Gun Enhanced Autogun Ballistic Cannon Heavy Mass Driver Special Weapon Remote Datajack Build | -11 -10 -10 -10 -9 -8 -8 -8 -7 -7 -6 ------- Run | Yrd Mat Min Exi Min Mat Sto Gar Fac Gar Fac Slots Evolved 8 | . . . . . 4 . . 2 . 2 Power 1 | . . . . . . . . 1 . . Propulsion 2 | . . . . . 1 . . . . 1 Utility 4 | . . . . . 2 . . 1 . 1 Weapon 1 | . . . . . 1 . . . . . Parts Attached 99 | 7 10 . 2 3 26 10 9 6 16 10 Power 12 | 1 1 . . 1 1 1 3 2 . 2 Engine 4 | 1 . . . . . 1 1 1 . . Core 8 | . 1 . . 1 1 . 2 1 . 2 Reactor . | . . . . . . . . . . . Propulsion 27 | 2 3 . . 1 8 4 2 . 4 3 Treads 21 | 2 . . . . 6 4 2 . 4 3 Leg 4 | . 2 . . 1 1 . . . . . Wheel 2 | . 1 . . . 1 . . . . . Hover . | . . . . . . . . . . . Flight . | . . . . . . . . . . . Utility 31 | 2 3 . . . 6 2 2 2 11 3 Device 8 | 1 2 . . . 3 1 . . . 1 Storage 3 | 1 1 . . . . 1 . . . . Processor 1 | . . . . . 1 . . . . . Hackware 9 | . . . . . . . . 2 6 1 Protection 10 | . . . . . 2 . 2 . 5 1 Artifact . | . . . . . . . . . . . Weapon 29 | 2 3 . 2 1 11 3 2 2 1 2 Energy Gun 16 | . 3 . 1 1 10 . . 1 . . Energy Cannon 2 | . . . 1 . . . 1 . . . Ballistic Gun 8 | 2 . . . . . 3 1 . . 2 Ballistic Cannon 2 | . . . . . 1 . . . 1 . Launcher . | . . . . . . . . . . . Special Weapon 1 | . . . . . . . . 1 . . Impact Weapon . | . . . . . . . . . . . Slashing Weapon . | . . . . . . . . . . . Piercing Weapon . | . . . . . . . . . . . Special Melee Weapon . | . . . . . . . . . . . Unidentified Prototypes 5 | . . . . . 3 1 . 1 . . Corrupted Parts 3 | . . . . . . . . . 1 2 System Corruption 15 | . . . . . . . . . 3 12 Parts Lost 29 | . 4 . . . 1 2 3 1 2 16 Power 6 | . 1 . . . 1 . 2 . . 2 Propulsion 8 | . 2 . . . . . . . 1 5 Utility 10 | . . . . . . 2 1 1 1 5 Weapon 5 | . 1 . . . . . . . . 4 Highest Loss Streak 5 | . 3 . . . 1 1 2 1 2 5 To Critical Strikes 1 | . . . . . . . . . 1 . Average Backups 16 | 4 11 17 15 15 14 14 19 19 19 16 Power . | . 2 2 1 3 2 . . . . . Propulsion 2 | 3 3 4 4 3 2 1 1 1 . 1 Utility 7 | . 2 5 5 5 5 5 9 11 9 8 Weapon 5 | . 3 6 4 3 4 6 8 7 8 4 Tool/Special . | . . . . . . . . . . . Unused Backups 31 | . 1 . 4 . 5 2 5 1 4 9 Power 4 | . . . 1 . 3 . . . . . Propulsion 2 | . . . . . 1 . 1 . . . Utility 16 | . 1 . . . 1 . 3 1 3 7 Weapon 8 | . . . 3 . . 2 1 . 1 1 Tool/Special 1 | . . . . . . . . . . 1 Average Slot Usage (%) 91 | . 99 100 100 100 95 91 95 86 81 64 Engine 3 | . 6 . . . . 3 4 9 7 1 Core 7 | . 7 14 14 14 8 5 3 2 7 7 Treads 16 | . 12 . . . 22 26 27 23 21 12 Leg 8 | . 14 28 28 28 2 . . . . . Device 10 | . 14 14 14 14 10 11 15 5 4 8 Storage 9 | . 14 14 14 14 9 9 9 7 7 6 Hackware 2 | . . . . . . . . 5 5 10 Protection 5 | . . . . . 8 8 7 7 11 4 Energy Gun 11 | . 22 28 19 25 26 12 . . . . Energy Cannon 1 | . . . 8 2 . . . . . . Ballistic Gun 7 | . 5 . . . . 14 26 22 2 3 Ballistic Cannon 1 | . . . . . . . . . 6 3 Special Weapon 1 | . . . . . . . . . 5 4 Peak Build Rating 81 | 7 12 13 24 24 42 42 43 46 74 81 Average Rating 35 | 5 10 12 20 20 37 38 38 41 55 65 On Entrance 27 | . 7 12 13 24 20 40 37 37 43 74 Naked Turns . | . . . . . . . . . . . Heaviest Build 157 | 14 52 52 58 58 72 100 117 122 157 137 Greatest Support 150 | 40 40 20 20 20 62 62 60 60 95 150 Greatest Overweight (x) 26 | . 5 2 2 2 3 1 1 2 3 26 Average Overweight (x) 1 | . 1 2 2 2 1 . 1 1 1 . Largest Inventory Capacity 25 | 8 20 20 20 20 20 25 25 25 25 25 Average Capacity 22 | 7 18 20 20 20 20 20 25 25 25 25 Most Carried 25 | 7 17 18 20 20 20 23 25 25 25 25 Average Carried 20 | 5 11 17 18 20 19 20 24 24 24 22 Final Capacity 25 | 8 20 20 20 20 20 25 25 25 25 25 Final Carried 25 | 6 17 18 20 20 20 23 25 25 25 18 Class Distribution -------------------- 27% | Scavenger-Mutant 25% | Bothacker-Tank 20% | Scavenger-Tank 8% | Mutant 7% | Skirmisher 3% | Scavenger-Gunner Dominant Class ---------------- Scavenger-Mutant | -10/Materials Scavenger-Mutant | -10/Mines Scavenger-Mutant | -10/Exiles Scavenger-Mutant | -9/Mines Skirmisher | -8/Materials Scavenger-Tank | -8/Storage Scavenger-Tank | -8/Garrison Scavenger-Tank | -7/Factory Bothacker-Tank | -7/Garrison Bothacker-Tank | -6/Factory Resources | -11 -10 -10 -10 -9 -8 -8 -8 -7 -7 -6 ----------- Run | Yrd Mat Min Exi Min Mat Sto Gar Fac Gar Fac Matter Collected 4706 | 302 314 60 40 50 339 654 1280 133 875 659 Remotely . | . . . . . . . . . . . Salvage Created 5745 | 66 602 . . 85 740 1340 1087 110 997 718 Parts 252 | 12 24 . . 3 22 53 54 6 38 40 Haulers Intercepted 5 | . 1 . . . 2 2 . . . . Recyclers Shooed 3 | . . . . . . . . . . 3 Parts Field Recycled . | . . . . . . . . . . . Retrieved Matter . | . . . . . . . . . . . Parts Self-Destructed . | . . . . . . . . . . . Prevented . | . . . . . . . . . . . Kills | -11 -10 -10 -10 -9 -8 -8 -8 -7 -7 -6 ------- Run | Yrd Mat Min Exi Min Mat Sto Gar Fac Gar Fac Combat Hostiles Destroyed 99 | . 11 . . 2 11 23 23 2 14 13 Guns 74 | . 10 . . . 7 23 23 2 1 8 Cannons 19 | . . . . 2 . . . . 12 5 AOE 3 | . . . . . 2 . . . 1 . Classes Destroyed 14 | 1 3 . . . 3 4 1 1 . 1 Worker 6 | . . . . . 1 2 . . . 3 Builder 2 | . . . . . . . . . . 2 Tunneler 5 | 5 . . . . . . . . . . Hauler 5 | . 1 . . . 2 2 . . . . Recycler 4 | . . . . . 1 3 . . . . Watcher 8 | . 3 . . . 3 2 . . . . Swarmer 11 | . . . . . . 7 3 . 1 . Grunt 53 | . 11 . . 2 7 8 11 . 5 9 Brawler 6 | . . . . . . 1 4 . . 1 Duelist 6 | . . . . . . 3 2 . . 1 Protector 1 | . . . . . . 1 . . . . Sentry 11 | . . . . . 4 3 2 . 2 . Hunter 5 | . . . . . . . 1 . 3 1 Programmer 6 | . . . . . . . . 1 4 1 Thug 1 | . . . . . . . . 1 . . Best Kill Streak 10 | 2 5 . . 2 4 10 3 2 4 7 Combat Bots Only 8 | . 4 . . 2 2 8 3 2 4 6 Max Kills in Single Turn 3 | 1 1 . . 1 2 3 1 1 1 2 Gunslinging 1 | . . . . . 1 1 . . . . Exploded 2 | . . . . . 2 . . . 1 . Melee . | . . . . . . . . . . . Uniques/NPCs Destroyed . | . . . . . . . . . . . Combat | -11 -10 -10 -10 -9 -8 -8 -8 -7 -7 -6 -------- Run | Yrd Mat Min Exi Min Mat Sto Gar Fac Gar Fac Hostile Shots Fired 814 | . 85 . . 1 48 83 62 21 91 423 Missed 239 | . 18 . . . 14 20 15 4 25 143 Hits 575 | . 67 . . 1 34 63 47 17 66 280 Melee 14 | . . . . . . 3 1 . . 10 Projectile 561 | . 67 . . 1 34 60 46 17 66 270 Critical Strikes 19 | . 1 . . . . 2 4 2 2 8 Damage Taken 8414 | . 828 . . 10 633 898 672 273 775 4325 Core 1115 | . 118 . . . . 22 52 . 66 857 Absorbed by Shields 153 | . . . . . . 17 . . 136 . Ignored by Resistances 10 | . . . . . . . . . 10 . Regen/Repaired (Parts) 65 | . . . . . 65 . . . . . Core Remaining (%) 82 | 100 . . . 52 . . 86 . 90 . Volleys Fired 421 | 8 71 . . 2 40 60 102 9 74 55 Largest 3 | 2 2 . . 1 3 3 3 1 3 3 Hottest 216 | 40 130 . . 120 216 216 120 28 78 78 Shots Fired 893 | 16 142 . . 2 115 176 239 9 79 115 Gun 786 | 16 142 . . . 110 176 236 5 7 94 Cannon 77 | . . . . 2 5 . 3 . 52 15 Launcher . | . . . . . . . . . . . Special 30 | . . . . . . . . 4 20 6 Kinetic 623 | 16 74 . . . 3 124 236 5 56 109 Thermal 237 | . 68 . . 2 112 52 3 . . . Explosive . | . . . . . . . . . . . Electromagnetic 3 | . . . . . . . . . 3 . Robot Hit Streak 22 | 3 10 . . 2 14 14 22 7 13 8 Robot Miss Streak 6 | 2 4 . . . 3 6 4 1 2 4 Penetration Max 1 | . . . . . . . . 1 1 1 Secondary Targets 12 | . . . . . 1 7 . . . 4 Max Gunslinging Chain 1 | . . . . . 1 1 . . . 1 Shots Hit Robots 535 | 7 87 . . 2 79 115 105 7 57 76 Core Hits 242 | 5 31 . . 2 32 55 49 4 25 39 Critical Kills 2 | . . . . . . . 1 . . 1 Critical Parts Destroyed 2 | . . . . . . . 2 . . . Critical Strikes 22 | . 3 . . . 5 1 3 . 7 3 Burn 9 | . 3 . . . 5 1 . . . . Destroy 4 | . . . . . . . 3 . . 1 Blast 9 | . . . . . . . . . 7 2 Melee Attacks . | . . . . . . . . . . . Impact . | . . . . . . . . . . . Slashing . | . . . . . . . . . . . Piercing . | . . . . . . . . . . . Sneak Attacks . | . . . . . . . . . . . Combat Hostiles . | . . . . . . . . . . . Follow-up Attacks . | . . . . . . . . . . . Damage Inflicted 12322 | 78 1060 . . 69 1864 2206 1918 145 3096 1886 Guns 8061 | 78 1060 . . . 1389 2206 1887 145 15 1281 Cannons 3305 | . . . . 69 69 . 31 . 2553 583 Explosions 934 | . . . . . 406 . . . 528 . Melee . | . . . . . . . . . . . Ramming 22 | . . . . . . . . . . 22 Kinetic 8403 | 78 439 . . . 69 1366 1887 145 2555 1864 Thermal 2950 | . 621 . . 69 1389 840 31 . . . Explosive 406 | . . . . . 406 . . . . . Electromagnetic 541 | . . . . . . . . . 541 . Impact . | . . . . . . . . . . . Slashing . | . . . . . . . . . . . Piercing . | . . . . . . . . . . . Highest Corruption 20 | . . . . . 5 5 5 1 11 20 Average Corruption 5 | . . . . . 5 5 5 1 3 11 Corruption Purged . | . . . . . . . . . . . Corruption Blocked . | . . . . . . . . . . . Effects 160 | . . . . . 19 25 48 3 43 22 Message Errors 30 | . . . . . 4 3 7 . 10 6 Matter Fused 35 | . . . . . 4 5 13 . 9 4 Heat Flow Errors 27 | . . . . . 1 5 10 1 8 2 Energy Discharges 18 | . . . . . 3 3 7 . 4 1 Parts Rejected 3 | . . . . . . . 1 . . 2 Parts Fused 3 | . . . . . 1 . . 1 1 . Data Loss (minor) 24 | . . . . . 2 7 3 1 8 3 Data Loss (major) 7 | . . . . . 4 . 1 . 2 . Misfires 7 | . . . . . . 2 2 . 1 2 Alerts 1 | . . . . . . . 1 . . . Misdirections 2 | . . . . . . . . . . 2 Weapon Failures 3 | . . . . . . . 3 . . . Overload Shots . | . . . . . . . . . . . Overflow Damage 280 | . . . . . 33 . 21 . 226 . Projectiles 280 | . . . . . 33 . 21 . 226 . Explosions . | . . . . . . . . . . . Melee . | . . . . . . . . . . . Knockbacks 10 | . . . . . 2 . . . 6 2 Impact . | . . . . . . . . . . . Kinetic 9 | . . . . . 1 . . . 6 2 Secondary 1 | . . . . . 1 . . . . . Self-Inflicted Damage 64 | . . . . . 62 . . . 2 . Shots 2 | . . . . . 1 . . . 1 . Rammed 9 | . . . . . . . . . . 9 Targets Rammed 10 | . . . . . . . . . . 10 Kicked . | . . . . . . . . . . . Crushed 1 | . . . . . . . . . . 1 Highest Temperature 329 | . 285 . . 128 329 324 255 97 222 255 Average Temperature 79 | . 75 . . 69 113 92 76 27 56 36 Received Heat Transfer 3134 | . 483 . . 6 225 348 351 27 188 1506 Effects 8 | . . . . . 3 4 . . . 1 Energy Bleed 2 | . . . . . . 1 . . . 1 Interference 6 | . . . . . 3 3 . . . . Siege Activations . | . . . . . . . . . . . Martial Activations . | . . . . . . . . . . . Shielding Activations . | . . . . . . . . . . . Robots Disrupted . | . . . . . . . . . . . Combat Hostiles . | . . . . . . . . . . . Robots Corrupted 4 | . . . . . . . . . 4 . Combat Hostiles . | . . . . . . . . . . . Parts Fried 8 | . . . . . . . . . 8 . Impact Corruptions . | . . . . . . . . . . . Robots Melted 3 | . 1 . . . 2 . . . . . Combat Hostiles 3 | . 1 . . . 2 . . . . . Parts Melted 15 | . 2 . . . 9 4 . . . . Heat Transferred 7145 | . 1668 . . 160 3294 1943 80 . . . Parts Sabotaged 1 | . . . . . . . . . . 1 Parts Stolen . | . . . . . . . . . . . Parts Stripped . | . . . . . . . . . . . Power Chain Reactions . | . . . . . . . . . . . Latent Energy Used 247 | . . . . . . . . . 247 . LE Corruption 5 | . . . . . . . . . 5 . Alert | -11 -10 -10 -10 -9 -8 -8 -8 -7 -7 -6 ------- Run | Yrd Mat Min Exi Min Mat Sto Gar Fac Gar Fac Maximum Alert Level 4 | . . . . . . 1 4 2 4 3 Low Security (%) 43 | 100 100 100 . 100 100 55 . . . . Level 1 11 | . . . . . . 44 16 . 26 . Level 2 29 | . . . . . . . 34 100 49 81 Level 3 10 | . . . . . . . 30 . 18 18 Level 4 4 | . . . . . . . 19 . 5 . Level 5 . | . . . . . . . . . . . High Security . | . . . . . . . . . . . Max Security . | . . . . . . . . . . . Peak Influence 1332 | 10 80 . . 50 171 376 1332 699 1135 768 Initial 699 | . . . . . . 17 239 699 319 595 Average 367 | 1 17 . . 3 76 159 747 567 587 627 Influence Increases 4611 | 25 371 . . 50 530 728 1223 106 1036 542 Destroy 0b10 Robot/C 2220 | . 220 . . 40 260 460 520 60 300 360 Destroy 0b10 Robot/NC 195 | 25 20 . . . 35 50 . 10 25 30 Destroy Leader 350 | . 48 . . 10 80 98 10 14 30 60 Allied During Kill 108 | . . . . . 6 8 25 22 14 33 Successful Hack 71 | . 21 . . . 11 4 28 . 7 . Select Force Hacks 30 | . . . . . . 30 . . . . Disable Machine 165 | . 15 . . . 75 45 . . . 30 Anti-Garrison Action 1100 | . . . . . . . 500 . 600 . Destroy Structure 162 | . 2 . . . 18 3 95 . 30 14 Partial Spotted 15 | . 15 . . . . . . . . . Lose Combat Pursuer 195 | . 30 . . . 45 30 45 . 30 15 Influence Decreases 4082 | 25 371 . . 50 487 403 259 981 358 1148 Entered New Map 1466 | . . . . . . 26 129 633 138 540 Time Decay 1957 | 25 354 . . 50 465 317 . 318 . 428 Lost Part 267 | . 17 . . . 10 20 30 10 20 160 Lost Ally 380 | . . . . . . 40 100 20 200 20 Purge Threat 12 | . . . . . 12 . . . . . Squads Dispatched 16 | . 2 . . . . 4 . 1 . 9 Investigation 3 | . 1 . . . . 1 . . . 1 Extermination 3 | . . . . . . . . 1 . 2 Reinforcement 2 | . 1 . . . . . . . . 1 Assault 7 | . . . . . . 2 . . . 5 Garrison 1 | . . . . . . 1 . . . . Intercept . | . . . . . . . . . . . Searches Triggered . | . . . . . . . . . . . Construction Impeded . | . . . . . . . . . . . Haulers Reinforced . | . . . . . . . . . . . Active Scanning Responses . | . . . . . . . . . . . Cargo Convoy Interrupts . | . . . . . . . . . . . Stealth | -11 -10 -10 -10 -9 -8 -8 -8 -7 -7 -6 --------- Run | Yrd Mat Min Exi Min Mat Sto Gar Fac Gar Fac Distress Signals 6 | . 3 . . . 3 . . . . . Communications Jammed . | . . . . . . . . . . . Distress Signals . | . . . . . . . . . . . Times Spotted 169 | . 19 . . 2 24 29 28 8 27 32 Peak Tracking Total 9 | . 5 . . 2 3 5 3 3 8 9 Tactical Retreats 13 | . 2 . . . 3 2 3 . 2 1 Traps | -11 -10 -10 -10 -9 -8 -8 -8 -7 -7 -6 ------- Run | Yrd Mat Min Exi Min Mat Sto Gar Fac Gar Fac Traps Triggered 16 | . 1 . . . 1 1 7 . 5 1 Indirectly . | . . . . . . . . . . . Trap Hack Attempts . | . . . . . . . . . . . Triggered . | . . . . . . . . . . . Disarmed . | . . . . . . . . . . . Reprogrammed . | . . . . . . . . . . . Reused . | . . . . . . . . . . . Traps Extracted . | . . . . . . . . . . . Installed . | . . . . . . . . . . . Triggered . | . . . . . . . . . . . Machines | -11 -10 -10 -10 -9 -8 -8 -8 -7 -7 -6 ---------- Run | Yrd Mat Min Exi Min Mat Sto Gar Fac Gar Fac Machines Disabled 18 | . 1 . . . 5 3 4 . 3 2 Max in Single Turn 3 | . 1 . . . 3 1 1 . 1 . Garrison Access 1 | . . . . . . . . . . 1 Garrison Relay 7 | . . . . . . . 4 . 3 . Machines Repaired . | . . . . . . . . . . . Machines Dismantled . | . . . . . . . . . . . Machines Sabotaged . | . . . . . . . . . . . Overloaded Fab Kills . | . . . . . . . . . . . Hacking | -11 -10 -10 -10 -9 -8 -8 -8 -7 -7 -6 --------- Run | Yrd Mat Min Exi Min Mat Sto Gar Fac Gar Fac Machines Accessed 27 | . 7 . 2 . 5 5 3 2 2 1 Terminals 21 | . 7 . . . 4 3 3 1 2 1 Fabricators . | . . . . . . . . . . . Repair Stations 1 | . . . . . 1 . . . . . Recycling Units 1 | . . . . . . 1 . . . . Scanalyzers . | . . . . . . . . . . . Garrison Access 2 | . . . . . . 1 . 1 . . Total Hacks 56 | . 17 . 2 . 12 7 9 2 5 2 Successful 30 | . 13 . 2 . 6 5 2 1 1 . Failed 26 | . 4 . . . 6 2 7 1 4 2 Catastrophic 6 | . 1 . . . 1 . 1 . 1 2 Database Lockouts . | . . . . . . . . . . . Manual 17 | . 12 . 1 . 3 1 . . . . Terminals 49 | . 17 . . . 10 5 9 1 5 2 Fabricators . | . . . . . . . . . . . Repair Stations 2 | . . . . . 2 . . . . . Recycling Units 1 | . . . . . . 1 . . . . Scanalyzers . | . . . . . . . . . . . Garrison Access 2 | . . . . . . 1 . 1 . . Terminal Hacks 17 | . 5 . 2 . 4 3 2 . 1 . Record 1 | . . . 1 . . . . . . . Prototype ID Bank 1 | . . . . . . 1 . . . . Open Door 2 | . . . . . . 1 . . 1 . Branch Access Points 1 | . . . . . 1 . . . . . Emergency Access Points 1 | . . . . . . . 1 . . . Unreport Threat 1 | . . . . . 1 . . . . . Locate Traps 3 | . 2 . . . 1 . . . . . Recall Investigation 1 | . 1 . . . . . . . . . Hauler Manifests 1 | . 1 . . . . . . . . . Zone Layout 3 | . 1 . . . 1 1 . . . . Patrol Navigation 1 | . . . . . . . 1 . . . Proto ID Catalog 1 | . . . 1 . . . . . . . Fabricator Hacks . | . . . . . . . . . . . Repair Station Hacks 2 | . . . . . 2 . . . . . Scan Component 1 | . . . . . 1 . . . . . Repair 1 | . . . . . 1 . . . . . Recycling Unit Hacks . | . . . . . . . . . . . Scanalyzer . | . . . . . . . . . . . Garrison Access Hacks 2 | . . . . . . 1 . 1 . . Unlock Access 2 | . . . . . . 1 . 1 . . Unauthorized Hacks 9 | . 8 . . . . 1 . . . . Terminals 8 | . 8 . . . . . . . . . Botnet 3 | . 3 . . . . . . . . . Skim 5 | . 5 . . . . . . . . . Fabricators . | . . . . . . . . . . . Repair Stations . | . . . . . . . . . . . Recycling Units 1 | . . . . . . 1 . . . . Tunnel 1 | . . . . . . 1 . . . . Scanalyzers . | . . . . . . . . . . . Garrison Access . | . . . . . . . . . . . Data Cores Recovered . | . . . . . . . . . . . Used . | . . . . . . . . . . . Hacking Detections 20 | . 5 . . . 4 4 3 1 2 1 Full Trace Events 4 | . . . . . . . 2 . 1 1 Feedback Events 1 | . . . . . . . . . . 1 Corruption 1 | . . . . . . . . . . 1 Feedback Blocked . | . . . . . . . . . . . Robot Schematics Acquired . | . . . . . . . . . . . Robots Built . | . . . . . . . . . . . Authchips . | . . . . . . . . . . . Time . | . . . . . . . . . . . Total Robot Build Rating . | . . . . . . . . . . . Part Schematics Acquired . | . . . . . . . . . . . Parts Built . | . . . . . . . . . . . Authchips . | . . . . . . . . . . . Time . | . . . . . . . . . . . Total Part Build Rating . | . . . . . . . . . . . Parts Repaired 1 | . . . . . 1 . . . . . Time 26 | . . . . . 26 . . . . . Parts Recycled . | . . . . . . . . . . . Recycled Matter . | . . . . . . . . . . . Retrieved Matter . | . . . . . . . . . . . Retrieved Components . | . . . . . . . . . . . Parts Scanalyzed . | . . . . . . . . . . . Part Schematics Acquired . | . . . . . . . . . . . Parts Damaged . | . . . . . . . . . . . Bothacking | -11 -10 -10 -10 -9 -8 -8 -8 -7 -7 -6 ------------ Run | Yrd Mat Min Exi Min Mat Sto Gar Fac Gar Fac Used RIF Installer 2 | . . . . . . . 1 . 1 . Structural Interface 1 | . . . . . . . . . 1 . Robots Hacked 16 | . . . . . . . . 3 11 2 Non-combat 1 | . . . . . . . . . . 1 Combat 15 | . . . . . . . . 3 11 1 Robot Hacks Applied 18 | . . . . . . . . 3 11 4 find_garrison 2 | . . . . . . . . 1 . 1 overload_power 1 | . . . . . . . . . 1 . amplify_resonance 1 | . . . . . . . . . 1 . overwrite_iff 4 | . . . . . . . . 1 2 1 streamctrl_high 1 | . . . . . . . . . . 1 formatsys_low 1 | . . . . . . . . . . 1 formatsys_high 8 | . . . . . . . . 1 7 . Relay Couplers Released 29 | . . . . . . . 14 . 13 2 Machine Destruction 29 | . . . . . . . 14 . 13 2 Attached 8 | . . . . . . . . 1 6 1 Fabnet Peak Effective % . | . . . . . . . . . . . Robots Rewired 11 | . . . . . . . 9 . 2 . Allies Hacked . | . . . . . . . . . . . Hacks Repelled . | . . . . . . . . . . . Allies | -11 -10 -10 -10 -9 -8 -8 -8 -7 -7 -6 -------- Run | Yrd Mat Min Exi Min Mat Sto Gar Fac Gar Fac Total Allies 28 | . . . . 1 . 2 10 2 11 2 Largest Group 5 | . . . . 1 1 2 5 5 4 3 Highest-Rated Group 112 | . . . . 31 31 62 112 112 88 88 Highest-Rated Ally 32 | . . . . 31 31 31 31 31 32 32 Total Orders 2 | . . . . . . . . . 2 . STAY 1 | . . . . . . . . . 1 . FOLLOW 1 | . . . . . . . . . 1 . Ally Attacks 147 | . . . . . 7 22 34 22 26 36 Total Damage 2702 | . . . . . 64 358 301 317 546 1116 Kills 18 | . . . . . 2 1 3 4 1 7 Allies Corrupted 2 | . . . . . . . 2 . . . Allies Melted . | . . . . . . . . . . . Intel | -11 -10 -10 -10 -9 -8 -8 -8 -7 -7 -6 ------- Run | Yrd Mat Min Exi Min Mat Sto Gar Fac Gar Fac Active Infowar (turns) 4003 | 17 609 . . . . 212 2070 588 . 507 Sensors 507 | . . . . . . . . . . 507 Seismic 3496 | 17 609 . . . . 212 2070 588 . . Robot Analysis Total . | . . . . . . . . . . . Derelict Logs Recovered 1 | . . . . 1 . . . . . . Drone Launches . | . . . . . . . . . . . Drone Recoveries . | . . . . . . . . . . . Exploration | -11 -10 -10 -10 -9 -8 -8 -8 -7 -7 -6 ------------- Run | Yrd Mat Min Exi Min Mat Sto Gar Fac Gar Fac Turns Passed 12912 | 158 1645 605 1274 764 1422 854 2070 706 2370 1044 Spaces Moved 4448 | 83 546 233 486 282 632 263 613 257 684 369 Core 15 | 14 . . . . . . . . . 1 Treads 2941 | 69 229 . . . 458 263 613 257 684 368 Legs 1346 | . 312 233 486 282 33 . . . . . Wheels 146 | . 5 . . . 141 . . . . . Hover . | . . . . . . . . . . . Flight . | . . . . . . . . . . . Fastest Speed 50 | 50 155 260 260 260 145 160 240 240 240 160 Average Speed 241 | 141 238 260 260 260 177 235 240 258 298 217 Slowest Speed 1350 | 160 320 260 260 260 260 240 240 320 400 1350 Overloaded Moves . | . . . . . . . . . . . Propulsion Burnouts . | . . . . . . . . . . . Robots Hopped . | . . . . . . . . . . . Potential Cave-ins 2 | . . . . . . . . . 2 . Cave-ins Triggered . | . . . . . . . . . . . Exploration Rate (%) 49 | 6 88 52 71 63 54 38 77 9 75 10 Regions Visited 10 Branch Regions 4 Pre-discovered Areas 4 | . 2 . 1 . . 1 . . . . Known Exits Taken 3 | . . . . . 1 1 . 1 . . Unknown Exits Taken 5 | 1 1 1 1 1 . . . . . . Scrap Searched 3 | . . 1 . 2 . . . . . . Spaces Dug 4 | . . . . . 2 . . . 2 . Terrain Destroyed 55 | . . . . . 20 . 4 1 23 7 Melee . | . . . . . . . . . . . Projectile 28 | . . . . . 3 . 4 1 13 7 AOE 27 | . . . . . 17 . . . 10 . Terrain Rammed . | . . . . . . . . . . . Walls Destroyed . | . . . . . . . . . . . Machines Disabled . | . . . . . . . . . . . Actions | -11 -10 -10 -10 -9 -8 -8 -8 -7 -7 -6 --------- Run | Yrd Mat Min Exi Min Mat Sto Gar Fac Gar Fac Total 5983 | 109 753 233 502 314 850 409 1082 290 930 511 Wait 681 | . 107 . . 20 108 56 216 10 110 54 Move 4439 | 82 545 232 485 281 631 263 612 256 683 369 Hop . | . . . . . . . . . . . Pick Up 90 | 12 17 1 6 1 14 5 13 2 15 4 Fast Attach 41 | 1 . . . 1 14 6 4 5 8 2 Attach 34 | 6 4 . 1 . 4 1 2 1 6 9 Detach 3 | . . . . . 1 1 . . 1 . Swap 58 | . 7 . 1 4 11 5 13 2 10 5 Drop 92 | . 2 . 9 5 27 11 11 4 21 2 Fire 421 | 8 71 . . 2 40 60 102 9 74 55 Melee . | . . . . . . . . . . . Ram 1 | . . . . . . . . . . 1 Kick . | . . . . . . . . . . . Crush 10 | . . . . . . . . . . 10 Escape Stasis 15 | . . . . . . 1 12 . 2 . Rewire 98 | . . . . . . . 97 1 . . Trap . | . . . . . . . . . . . Miscellaneous . | . . . . . . . . . . . Route ------- -11/Scrapyard -10/Materials (discovered 5 exits: *Mat x3 / [*Min] / Sub) -10/Mines (discovered 2 exits: *Mat / *Exi) -10/Exiles (discovered 2 exits: [*Min x2]) -9/Mines -8/Materials (discovered 5 exits: *Fac x3 / *Sto x2) -8/Storage (discovered 2 exits: [Rec] / Gar) -8/Garrison (discovered 2 exits: *Fac x2) -7/Factory -7/Garrison (discovered 2 exits: *Fac x2) -6/Factory (discovered 1 exit: [*Fac]) History --------- Turn | Location | Event 7 | -11/Scrapyard | Discovered new exit (range 15) 159 | -11/Scrapyard | Entered Materials 315 | -10/Materials | Build established: Mutant 725 | -10/Materials | Discovered new exit (range 11) 934 | -10/Materials | Lost 3 parts (1p2n) 1096 | -10/Materials | Discovered new exit (range 11) 1223 | -10/Materials | Build established: Scavenger-Mutant 1407 | -10/Materials | Discovered new exit (range 15) 1464 | -10/Materials | Learned location of Recycling (-8) 1509 | -10/Materials | Identified exit to Subcaves 1543 | -10/Materials | Learned Storage stockpile data 1579 | -10/Materials | Loaded intel: 22 trap records 1583 | -10/Materials | Learned location of 2 exits from Subcaves 1599 | -10/Materials | Identified exit to Materials 1627 | -10/Materials | Learned Storage stockpile data 1663 | -10/Materials | Learned location of 3 exits from Materials 1804 | -10/Materials | Entered Mines 1984 | -10/Mines | A weapon hastily lodged in a ceiling crevice suddenly fell to the ground 2073 | -10/Mines | Deemed a non-threat by the Exiles lab entrance 2073 | -10/Mines | Discovered new exit (range 5) 2141 | -10/Mines | Discovered exit to Materials (range 6) 2409 | -10/Mines | Entered Exiles 2474 | -10/Exiles | Met 8R-AWN 2513 | -10/Exiles | Met EX-HEX 2610 | -10/Exiles | Met EX-BIN 2638 | -10/Exiles | Aligned with FarCom system 2641 | -10/Exiles | Given EX-Vault access code 2701 | -10/Exiles | Opened EX-Vault 2719 | -10/Exiles | Found Gui. Plasma Cannon 2728 | -10/Exiles | Found Latent Energy Streamer 2738 | -10/Exiles | Found Army-in-a-Box 2793 | -10/Exiles | Warned to stay clear of 0b10 Research branches 2882 | -10/Exiles | Met EX-DEC 2892 | -10/Exiles | Learned location of Zion (-7) 3277 | -10/Exiles | Discovered new exit (range 12) 3642 | -10/Exiles | Discovered new exit (range 15) 3683 | -10/Exiles | Stole three prototypes: Gui. Plasma Cannon, Army-in-a-Box, Latent Energy Streamer 3683 | -10/Exiles | Entered Mines 3829 | -9/Mines | Learned location of 1 exit from Materials 3863 | -9/Mines | Found a hidden stash of uninstalled traps 4316 | -9/Mines | Discovered new exit (range 13) 4332 | -9/Mines | Received a Mining Laser from a helpful Derelict 4447 | -9/Mines | Entered Materials 4447 | -8/Materials | Accompanied by 1 ally 4447 | -8/Materials | Evolved 4 slots: Propulsion x1, Utility x2, Weapon x1 4448 | -8/Materials | Identified exit to Factory 4448 | -8/Materials | Identified exit to Storage 5373 | -8/Materials | Build established: Skirmisher 5394 | -8/Materials | Discovered exit to Factory (range 16) 5488 | -8/Materials | Repaired Lgt. Armor Plating 5869 | -8/Materials | Entered Storage 5871 | -8/Storage | FarCom data flow suspended 6258 | -8/Storage | Met a pair of Derelict thieves 6380 | -8/Storage | Destroyed 8 combat bots 6464 | -8/Storage | Build established: Scavenger-Tank 6558 | -8/Storage | Discovered new exit (range 9) 6658 | -8/Storage | Garrison activated, responded to threat 6723 | -8/Storage | Identified exit to Garrison 6723 | -8/Storage | Entered Garrison 6961 | -8/Garrison | Triggered checkpoint 6979 | -8/Garrison | Build established: Scavenger-Gunner 7056 | -8/Garrison | Garrison Relay disabled 7256 | -8/Garrison | Triggered checkpoint 7313 | -8/Garrison | Build established: Scavenger-Tank 7416 | -8/Garrison | Discovered exit to Factory (range 11) 7517 | -8/Garrison | Triggered checkpoint 7551 | -8/Garrison | Installed Relay Interface Framework 7613 | -8/Garrison | Garrison Relay disabled 7753 | -8/Garrison | Triggered checkpoint 8005 | -8/Garrison | Garrison Relay disabled 8113 | -8/Garrison | Triggered checkpoint 8209 | -8/Garrison | Triggered checkpoint 8232 | -8/Garrison | Garrison Relay disabled 8552 | -8/Garrison | Lost 4 allies 8587 | -8/Garrison | Rescued a captive Derelict 8768 | -8/Garrison | Discovered exit to Factory (range 7) 8793 | -8/Garrison | Entered Factory 8793 | -7/Factory | Accompanied by 5 allies 8793 | -7/Factory | Evolved 2 slots: Power x1, Utility x1 9177 | -7/Factory | P-60 Hacker assimilated allied ND-OQ4(g) 9478 | -7/Factory | Identified exit to Garrison 9490 | -7/Factory | Build established: Bothacker-Tank 9499 | -7/Factory | Entered Garrison 9499 | -7/Garrison | Accompanied by 4 allies 9540 | -7/Garrison | Expanded RIF knowledge: Structural Interface 9735 | -7/Garrison | Triggered checkpoint 9782 | -7/Garrison | Garrison Relay disabled 10041 | -7/Garrison | Triggered checkpoint 10085 | -7/Garrison | Lost 5 allies 10507 | -7/Garrison | Garrison Relay disabled 10609 | -7/Garrison | Discovered new exit (range 13) 10703 | -7/Garrison | Triggered checkpoint 10794 | -7/Garrison | P-60 Hacker assimilated allied Trooper 4e 11051 | -7/Garrison | Triggered checkpoint 11161 | -7/Garrison | Triggered checkpoint 11395 | -7/Garrison | System corruption reached 10% 11576 | -7/Garrison | Garrison Relay disabled 11813 | -7/Garrison | Discovered new exit (range 13) 11869 | -7/Garrison | Entered Factory 11869 | -6/Factory | Accompanied by 3 allies 11869 | -6/Factory | Evolved 2 slots: Propulsion x1, Utility x1 12219 | -6/Factory | First assault squad dispatched 12438 | -6/Factory | System corruption reached 10% 12449 | -6/Factory | Lost 3 parts (1p1n1w) 12725 | -6/Factory | Lost 3 parts (1u2w) 12810 | -6/Factory | Discovered new exit (range 14) 12885 | -6/Factory | Core integrity fell below 50% 12908 | -6/Factory | Core integrity fell below 20% 12913 | -6/Factory | Destroyed by Guardian 5a with Gatling Laser Last Messages --------------- 12890_ K-01 Serf collects debris. 12890_ R-10 Processor collects Welding Torch. 12890_ Adv. Sensor Array destroyed. 12893_ K-01 Serf cleans the Matter Pump. 12893_ R-10 Processor collects Wheel. 12894_ RP,8|BIWTE8RLHV 0 12909_ System corrupted: Matter fused (-8). 12911_ G-50 Soldier heat short circuits Lgt. Angular Momentum Engine. 12911_ Relay Coupler [Sentry] destroyed. Map ----- +----------------------------------------------------+ | ?????????????????????????????????????????????????? | | ?????????????????????????????????????????????????? | | ?????????????????????????????????????????????????? | | ?????????????????????????????????????????????????? | | ?????????????????????????????????????????????????? | | ?????????????????????????????????????????????????? | | ?????????????????????????????????????????????????? | | ?????????????????????????????????????????????????? | | ?????????????????????????????????????????????????? | | ??????????????????????????????? ??????????????? | | ?????????????????????????????" ??????????????? | | ?????????????????????????? ??" ?????????????? | | ?????????????????????????? ? #???????? ???? | | ?????????????????????????? "?" ! #??????? ???? | | ???????????????????? ????" """ #????? ????? | | ???????????????????? ???" """ #????? ????? | | ????????????????????#R #????? ????? | | ????????????????????# """ """ #????? ????? | | ????????????????????# """ """ #????? ?????? | | ??????????????####### """ """ ###??? ?????? | | ??????????????? u???? ?????? | | ??????????????? u """ #?????#+#???#+# | | ??????????????? " """ k #?????# #???# # | | ?????????????? "" """ k #???### ###?# # | | ?????????????? G ##### #?# # | | ???????????????# ""@g R ### # | | ???????????????# " g gg T # | | ???????????????# gg u ### # | | ???????????????# Y [##### #?# # | | ???????????????# ########+###???###+###?# # | | ???????????????# ?????? ????????????# # | | ???????????????# ????? ? #?????????## # | | ???????????????# ????? ?? #?????????# | | ???????????????# ??? ""???"" #?????????#!< | | ???????????????# ??? "????"" #?????????# | | ???????????????# ??????????"" #?????????## # | | ??????????????? ???????????? #??????????# # | | ??????????????? ????????????? #??????????# # | | ?????????????????? ?????????????############## | | ??????????????????????????????????# ! * # | | ??????????????????????????????????# # | | ??????????????????????????????????# " " " " " [# | | ??????????????????????????????????# " " " " " # | | ??????????????????????????????????# " " " " " # | | ??????????????????????????????????# " " " " " # | | ??????????????????????????????????# " " " " " # | | ??????????????????????????????????# " " " " " # | | ??????????????????????????????????# " " " " " # | | ??????????????????????????????????# " " " " " + | | ??????????????????????????????????# " " " " " # | +----------------------------------------------------+ Best States ------------- Heat Dissipation 64 Energy Generation 25 Energy Capacity 440 Matter Stores 300 Matter Capacity 300 Sight Range 16 Robot Scan Range 16 Terrain Scan Density 10 Armor Coverage 825 Resistance: KI 30 Evasion (%) 50 Recoil Reduction 4 Energy Filtering 30 Offensive Hacking 10 Relay Coupler Types 2 Relay Coupler Value 59 Item Schematics ----------------- None Robot Schematics ------------------ None Fabricated ------------ Nothing Repaired ---------- Lgt. Armor Plating | 27% | -8/Materials Alien Tech Used ----------------- None Achievements -------------- None Challenges ------------ None Game ------ Seed HeatTransdimensionalKatana Manual? 0 Play Time 01:37:25 Cumulative 191.4 hours Start 2025.09.21 @ 10:34:17 End 2025.09.21 @ 18:43:21 Sessions 3 Manual Loads 0 Difficulty Rogue Special Mode None Game No. 257 Rogue 257 Adventurer 0 Explorer 0 Win Type - Total 3 Types 2/0/0/1/0/0/0/0/0/0 Lore% 73 Gallery% 72 Achievement% 62 Wizard Run 0 Options --------- Layout 0 ASCII 0 Keyboard 0 Movement Mouse Keybinds 0 Fullscreen 1 Font 16/SmallcapsGlow Map View 75x55 Zoom Use 0% Tactical HUD 1 Map Filters NONE Filters NONE Steam 1 RUN: ae24f697-dea3-478f-a145-f3c3dfb373ef